bitfinex-derivatives/quotes_BTCF0:USTF0_20250222
["timestamp","ask_amount","ask_price","bid_price","bid_amount"]
[1740234614913,0.77653604,96707.0,96706.0,0.2078289]
[1740234615105,0.77653604,96707.0,96706.0,0.001]
[1740234615709,0.77653604,96707.0,96706.0,0.2078289]
[1740234615914,0.68183604,96707.0,96706.0,0.2078289]
[1740234619009,0.32103604,96707.0,96706.0,0.2078289]
[1740234621519,0.27074585,96707.0,96706.0,0.2078289]
[1740234622819,0.01221215,96707.0,96706.0,0.2078289]
[1740234623006,0.01221215,96707.0,96706.0,0.5992289]
[1740234623213,0.15505214,96708.0,96706.0,0.3924]
[1740234623521,0.15505214,96708.0,96707.0,0.2168268]
[1740234623717,0.15505214,96708.0,96707.0,0.2479268]
[1740234624830,0.15905214,96708.0,96707.0,0.2489268]
[1740234625416,0.16605214,96708.0,96707.0,0.2499268]
[1740234625607,0.011,96708.0,96707.0,0.2499268]
[1740234626116,0.15505214,96714.0,96708.0,0.0517061]
[1740234626327,0.15505214,96714.0,96713.0,0.2168139]
[1740234626908,0.0845935,96732.0,96713.0,0.01]
[1740234626909,0.2067884,96725.0,96713.0,0.01]
[1740234627222,0.2067884,96725.0,96715.0,0.5776096]
[1740234627615,0.2067936,96723.0,96715.0,0.6091096]
[1740234628024,0.08092262,96730.0,96715.0,0.6091096]
[1740234628224,0.206791,96724.0,96715.0,0.6091096]
[1740234628412,0.0516971,96725.0,96715.0,0.6091096]
[1740234628613,0.00115511,96716.0,96715.0,0.6091096]
[1740234631219,0.00115511,96716.0,96715.0,0.79467224]
[1740234634419,0.00115511,96716.0,96715.0,0.76317224]
[1740234636414,0.00115511,96716.0,96715.0,0.5776096]
[1740234645332,0.00115511,96716.0,96715.0,0.5676096]
[1740234645629,0.00115511,96716.0,96715.0,0.5776096]
[1740234647730,0.00115511,96716.0,96715.0,0.5676096]
[1740234648432,0.20796261,96716.0,96715.0,0.5676096]
[1740234648734,0.21796261,96716.0,96715.0,0.6695296]
[1740234649836,0.21796261,96716.0,96715.0,0.6694896]
[1740234650032,0.01115511,96716.0,96715.0,0.6694896]
[1740234650480,0.21796261,96716.0,96715.0,0.6694896]
[1740234652937,0.21796261,96716.0,96715.0,0.5676096]
[1740234653245,0.21796261,96716.0,96715.0,0.6693696]
[1740234663539,0.21796261,96716.0,96715.0,0.3085696]
[1740234665145,0.21796261,96716.0,96715.0,0.49464024]
[1740234669750,0.21796261,96716.0,96715.0,0.3085696]
[1740234673449,0.2068139,96713.0,96712.0,0.24813489]
[1740234673646,0.2168139,96713.0,96712.0,0.45495099]
[1740234673849,0.2805139,96713.0,96712.0,0.45495099]
[1740234676356,0.2705139,96713.0,96712.0,0.45495099]
[1740234677190,0.2805139,96713.0,96712.0,0.45495099]
[1740234677759,0.2805139,96713.0,96712.0,0.2068161]
[1740234691361,0.0432,96713.0,96712.0,0.2068161]
[1740234691666,0.00015511,96716.0,96715.0,0.2068096]
[1740234691667,0.20696261,96716.0,96715.0,0.2068096]
[1740234691850,0.01015511,96716.0,96715.0,0.2068096]
[1740234692046,0.00015511,96716.0,96715.0,0.2068096]
[1740234692254,0.00015511,96716.0,96715.0,0.2168096]
[1740234694552,0.00015511,96716.0,96715.0,0.3182096]
[1740234695853,0.00015511,96716.0,96715.0,0.3082096]
[1740234696053,0.00015511,96716.0,96715.0,0.3182096]
[1740234698867,0.01015511,96716.0,96713.0,0.24813489]
[1740234699066,0.2168118,96714.0,96713.0,0.45494449]
[1740234699261,0.2168118,96714.0,96713.0,0.55634449]
[1740234699466,0.2489118,96714.0,96713.0,0.55634449]
[1740234699661,0.2489118,96714.0,96713.0,0.34953489]
[1740234699861,0.2489118,96714.0,96713.0,0.55634879]
[1740234700368,0.2489118,96714.0,96713.0,0.45494879]
[1740234700562,0.2489118,96714.0,96713.0,0.55634879]
[1740234701863,0.0421,96714.0,96713.0,0.55634879]
[1740234702670,0.2489118,96714.0,96713.0,0.55634879]
[1740234702968,0.2489118,96714.0,96713.0,0.91714879]
[1740234703172,0.0421,96714.0,96713.0,0.91714879]
[1740234703366,0.2489118,96714.0,96713.0,0.91714879]
[1740234703670,0.0421,96714.0,96713.0,0.6690139]
[1740234704163,0.2489118,96714.0,96713.0,0.6690139]
[1740234705162,0.0421,96714.0,96713.0,0.6690139]
[1740234705772,0.2489118,96714.0,96713.0,0.6690139]
[1740234709174,0.00015511,96716.0,96715.0,0.2068096]
[1740234709471,0.2067844,96727.0,96720.0,0.206799]
[1740234709666,0.083695,96729.0,96720.0,0.206799]
[1740234709866,0.032,96729.0,96720.0,0.237299]
[1740234710466,0.0404,96721.0,96720.0,0.237299]
[1740234711073,0.0304,96721.0,96720.0,0.237299]
[1740234711273,0.0404,96721.0,96720.0,0.238299]
[1740234711985,0.032,96729.0,96728.0,0.2067819]
[1740234712191,0.032,96729.0,96728.0,0.3081819]
[1740234712521,0.00015511,96730.0,96729.0,0.2067797]
[1740234713285,0.00015511,96730.0,96729.0,0.2382797]
[1740234713487,0.01015511,96730.0,96729.0,0.2382797]
[1740234714196,0.00015511,96730.0,96729.0,0.2382797]
[1740234714396,0.00015511,96730.0,96729.0,0.2392797]
[1740234714988,0.0302,96734.0,96733.0,0.2067712]
[1740234715286,0.0302,96734.0,96733.0,0.21739188]
[1740234717198,0.0302,96734.0,96733.0,0.21839188]
[1740234723394,0.236969,96734.0,96733.0,0.1024]
[1740234723696,0.2067754,96731.0,96730.0,0.18586689]
[1740234723898,0.5675754,96731.0,96730.0,0.18586689]
[1740234724417,0.5675754,96731.0,96730.0,0.13596689]
[1740234725301,0.5675754,96731.0,96730.0,0.03616689]
[1740234725595,0.5675754,96731.0,96730.0,0.03716689]
[1740234728594,0.3608,96731.0,96721.0,0.0516991]
[1740234728794,0.2584928,96723.0,96722.0,0.2067929]
[1740234729695,0.2895928,96723.0,96722.0,0.2067929]
[1740234731691,0.2895928,96723.0,96722.0,0.2077929]
[1740234732207,0.2895928,96723.0,96722.0,0.001]
[1740234732409,0.2895928,96723.0,96722.0,0.2077947]
[1740234732809,0.2895928,96723.0,96722.0,0.001]
[1740234733005,0.6503928,96723.0,96722.0,0.001]
[1740234733209,0.206799,96720.0,96719.0,0.00015511]
[1740234735609,0.206799,96720.0,96719.0,0.00115511]
[1740234742413,0.20671639,96721.0,96709.0,0.03305089]
[1740234742619,0.2068203,96710.0,96709.0,0.03305089]
[1740234743417,0.2068203,96710.0,96709.0,0.23987339]
[1740234743737,0.2068203,96710.0,96709.0,0.03305089]
[1740234744120,0.2068203,96710.0,96709.0,0.00155089]
[1740234744506,0.2068203,96710.0,96709.0,0.20837339]
[1740234745115,0.2068203,96710.0,96709.0,0.23887339]
[1740234749619,0.2068203,96710.0,96709.0,0.2373225]
[1740234752148,0.2078203,96710.0,96709.0,0.2373225]
[1740234761733,0.2178203,96710.0,96709.0,0.2373225]
[1740234763829,0.2178203,96710.0,96709.0,0.24788709]
[1740234765137,0.2178203,96710.0,96709.0,0.0305]
[1740234767936,0.2178203,96710.0,96706.0,0.0328]
[1740234767937,0.0517057,96709.0,96706.0,0.0328]
[1740234768131,0.2168268,96707.0,96706.0,0.0328]
[1740234768933,0.2168268,96707.0,96706.0,0.2396289]
[1740234769934,0.2178268,96707.0,96706.0,0.2396289]
[1740234772934,0.2178268,96707.0,96706.0,0.0328]
[1740234773234,0.2178268,96707.0,96706.0,0.2396289]
[1740234777545,0.2178268,96707.0,96706.0,0.0328]
[1740234777948,0.2068289,96706.0,96705.0,0.0319]
[1740234778249,0.2068396,96701.0,96699.0,0.0325]
[1740234778446,0.5776396,96701.0,96699.0,0.0325]
[1740234779342,0.5776396,96701.0,96700.0,0.00215511]
[1740234779848,0.5878522,96701.0,96700.0,0.00215511]
[1740234782251,0.5776396,96701.0,96700.0,0.00215511]
[1740234782440,0.58820986,96701.0,96700.0,0.00215511]
[1740234782640,0.58820986,96701.0,96681.0,0.0517204]
[1740234782641,0.38137026,96701.0,96689.0,0.00155114]
[1740234782839,0.2168631,96690.0,96689.0,0.00155114]
[1740234783292,0.2488631,96690.0,96689.0,0.00155114]
[1740234783555,0.2585891,96687.0,96686.0,0.2068715]
[1740234783846,0.2645891,96687.0,96686.0,0.2068715]
[1740234784052,0.2595891,96687.0,96686.0,0.2068715]
[1740234784851,0.2068717,96686.0,96685.0,0.0647]
[1740234785149,0.2168717,96686.0,96685.0,0.0647]
[1740234785451,0.2128717,96686.0,96685.0,0.2715738]
[1740234785945,0.2078717,96686.0,96685.0,0.2715738]
[1740234786138,0.2078717,96686.0,96685.0,0.0697]
[1740234786342,0.2078717,96686.0,96685.0,0.0747]
[1740234787053,0.2078717,96686.0,96685.0,0.2815738]
[1740234792047,0.1978717,96686.0,96685.0,0.2815738]
[1740234792248,0.2078717,96686.0,96685.0,0.2815738]
[1740234792448,0.1978717,96686.0,96685.0,0.2815738]
[1740234793656,0.2078717,96686.0,96685.0,0.2815738]
[1740234794650,0.1978717,96686.0,96685.0,0.2815738]
[1740234794854,0.2078717,96686.0,96685.0,0.2815738]
[1740234795052,0.01,96686.0,96685.0,0.2815738]
[1740234795257,0.2168717,96686.0,96685.0,0.2815738]
[1740234795654,0.01,96686.0,96685.0,0.0747]
[1740234795855,0.2068717,96686.0,96685.0,0.3332917]
[1740234796554,0.2168717,96686.0,96685.0,0.3332917]
[1740234796755,0.2168717,96686.0,96685.0,0.4346917]
[1740234798552,0.2068717,96686.0,96685.0,0.4346917]
[1740234798862,0.2168717,96686.0,96685.0,0.4346917]
[1740234799757,0.2168717,96686.0,96685.0,0.1761]
[1740234799954,0.2483717,96686.0,96685.0,0.1761]
[1740234800266,0.2483717,96686.0,96685.0,0.0747]
[1740234800466,0.2483717,96686.0,96685.0,0.01]
[1740234802455,0.25862629,96686.0,96685.0,0.01]
[1740234805671,0.29032629,96686.0,96685.0,0.01]
[1740234806884,0.65112629,96686.0,96685.0,0.01]
[1740234810866,0.44425459,96686.0,96671.0,0.00052]
[1740234811167,0.44425459,96686.0,96660.0,0.30980917]
[1740234811168,0.2168974,96674.0,96669.0,0.0322]
[1740234811566,0.3115974,96674.0,96669.0,0.0322]
[1740234811960,0.3115974,96674.0,96673.0,0.02731]
[1740234812560,0.3115974,96674.0,96673.0,0.02431]
[1740234813297,0.3115974,96674.0,96673.0,0.02731]
[1740234814269,0.2069145,96666.0,96664.0,0.00010365]
[1740234814470,0.5777145,96666.0,96664.0,0.00010365]
[1740234815667,0.5787145,96666.0,96665.0,0.00555162]
[1740234816161,0.5797145,96666.0,96665.0,0.00855162]
[1740234822268,0.59017456,96666.0,96665.0,0.00855162]
[1740234822579,0.2069209,96663.0,96662.0,0.0331]
[1740234822878,0.2169209,96663.0,96662.0,0.0331]
[1740234824670,0.2179209,96663.0,96662.0,0.0341]
[1740234825277,0.2189209,96663.0,96662.0,0.0371]
[1740234825981,0.2511209,96663.0,96662.0,0.0371]
[1740234834096,0.2189209,96663.0,96662.0,0.0371]
[1740234840500,0.2189209,96663.0,96662.0,0.0366]
[1740234840694,0.2089209,96663.0,96662.0,0.0366]
[1740234841405,0.2189209,96663.0,96662.0,0.0366]
[1740234842005,0.26923599,96663.0,96662.0,0.0366]
[1740234842201,0.29973599,96663.0,96662.0,0.0366]
[1740234843797,0.09281509,96663.0,96639.0,0.3623521]
[1740234843993,0.2069959,96628.0,96621.0,0.37301537]
[1740234844298,0.2169959,96628.0,96622.0,0.032]
[1740234845198,0.2169959,96628.0,96624.0,0.37249537]
[1740234845408,0.2697452,96628.0,96627.0,0.001]
[1740234845802,0.2697452,96628.0,96624.0,0.37249537]
[1740234845803,0.2070023,96625.0,96624.0,0.37249537]
[1740234846008,0.2170023,96625.0,96624.0,0.37249537]
[1740234847909,0.2180023,96625.0,96624.0,0.37249537]
[1740234849313,0.2190023,96625.0,96624.0,0.37249537]
[1740234849610,0.2190023,96625.0,96617.0,0.0312]
[1740234849611,0.012,96625.0,96617.0,0.0312]
[1740234849816,0.5778173,96618.0,96617.0,0.0312]
[1740234851404,0.5788173,96618.0,96617.0,0.0312]
[1740234852514,0.5798173,96618.0,96617.0,0.0312]
[1740234858624,0.5788173,96618.0,96617.0,0.0312]
[1740234858811,0.5778173,96618.0,96617.0,0.0312]
[1740234862120,0.3608,96618.0,96617.0,0.0312]
[1740234862421,0.3608,96618.0,96617.0,0.2382194]
[1740234862422,0.5778173,96618.0,96617.0,0.2382194]
[1740234862623,0.5778173,96618.0,96617.0,0.0312]
[1740234867520,0.2070258,96614.0,96613.0,0.0313]
[1740234867825,0.2070537,96601.0,96598.0,0.2588229]
[1740234868126,0.2170537,96601.0,96600.0,0.4092159]
[1740234868625,0.2170537,96601.0,96600.0,0.3070559]
[1740234869120,0.2170537,96601.0,96600.0,0.1]
[1740234869622,0.2180537,96601.0,96600.0,0.1]
[1740234870821,0.2190537,96601.0,96600.0,0.1]
[1740234873022,0.2071009,96579.0,96578.0,0.0517752]
[1740234873320,0.2171009,96579.0,96578.0,0.2588736]
[1740234873622,0.2171009,96579.0,96578.0,0.3610336]
[1740234874217,0.2181009,96579.0,96578.0,0.3610336]
[1740234874417,0.2191009,96579.0,96578.0,0.3918336]
[1740234888739,0.012,96579.0,96578.0,0.3918336]
[1740234889344,0.2191009,96579.0,96578.0,0.3918336]
[1740234892835,0.012,96579.0,96578.0,0.3918336]
[1740234893035,0.00015528,96588.0,96587.0,0.2070837]
[1740234893244,0.15416786,96595.0,96594.0,0.2070687]
[1740234893445,0.37123446,96595.0,96594.0,0.2070687]
[1740234893649,0.37123446,96595.0,96594.0,0.2376687]
[1740234894247,0.16416786,96595.0,96594.0,0.2376687]
[1740234894446,0.16516786,96595.0,96594.0,0.2376687]
[1740234894948,0.16516786,96595.0,96594.0,0.3394687]
[1740234895941,0.16516786,96595.0,96594.0,0.3393887]
[1740234896339,0.16616786,96595.0,96594.0,0.3709887]
[1740234896753,0.012,96595.0,96594.0,0.3709887]
[1740234897739,0.012,96595.0,96594.0,0.3745887]
[1740234897941,0.2190666,96595.0,96594.0,0.3745887]
[1740234898142,0.012,96595.0,96594.0,0.3745887]
[1740234903651,0.012,96595.0,96594.0,0.2728687]
[1740234903848,0.012,96595.0,96594.0,0.3745887]
[1740234904562,0.002,96595.0,96594.0,0.3845887]
[1740234904747,0.0332,96602.0,96594.0,0.3845887]
[1740234904748,0.0332,96602.0,96594.0,0.17752]
[1740234904948,0.00015528,96604.0,96603.0,0.2070494]
[1740234905256,0.00015528,96604.0,96603.0,0.3088894]
[1740234905459,0.00015528,96604.0,96603.0,0.3716894]
[1740234906051,0.01015528,96604.0,96603.0,0.3716894]
[1740234907346,0.00015528,96604.0,96603.0,0.3716894]
[1740234909165,0.00015528,96604.0,96603.0,0.3816894]
[1740234909663,1e-08,96604.0,96603.0,0.3816894]
[1740234912071,0.21704731,96604.0,96603.0,0.2070494]
[1740234912257,0.21704731,96604.0,96603.0,0.3092894]
[1740234912555,0.30994731,96604.0,96603.0,0.2070494]
[1740234912762,0.30994731,96604.0,96603.0,0.3093294]
[1740234915367,0.30994731,96604.0,96603.0,0.2070494]
[1740234915767,0.29994731,96604.0,96603.0,0.2070494]
[1740234915967,1e-08,96604.0,96603.0,0.2070494]
[1740234916173,1e-08,96604.0,96603.0,0.2773494]
[1740234916474,1e-08,96604.0,96603.0,1.7773494]
[1740234917272,1e-08,96604.0,96603.0,0.2773494]
[1740234924585,1e-08,96604.0,96603.0,0.46292446]
[1740234926188,1e-08,96604.0,96603.0,0.56544446]
[1740234928491,1e-08,96604.0,96603.0,0.3798694]
[1740234930576,1e-08,96604.0,96603.0,0.2773494]
[1740234930784,1e-08,96604.0,96603.0,0.3797494]
[1740234931389,1e-08,96604.0,96603.0,0.2773494]
[1740234931582,1e-08,96604.0,96603.0,0.3797094]
[1740234935393,1e-08,96604.0,96603.0,0.1671494]
[1740234935694,0.2070537,96601.0,96600.0,0.144565]
[1740234936086,0.2170537,96601.0,96600.0,0.144565]
[1740234936481,0.2170537,96601.0,96600.0,0.144465]
[1740234936680,0.2070666,96595.0,96594.0,0.0036]
[1740234936879,0.2170666,96595.0,96594.0,0.0036]
[1740234937886,0.2160666,96595.0,96594.0,0.0036]
[1740234938294,0.2160666,96595.0,96594.0,0.0046]
[1740234941796,0.2060666,96595.0,96594.0,0.2116687]
[1740234942196,0.2160666,96595.0,96594.0,0.2116687]
[1740234942793,0.01,96595.0,96594.0,0.2116687]
[1740234943099,0.2070666,96595.0,96594.0,0.2116687]
[1740234943994,0.2170666,96595.0,96594.0,0.2116687]
[1740234946092,0.2070666,96595.0,96594.0,0.2116687]
[1740234946495,0.2170666,96595.0,96594.0,0.2116687]
[1740234948189,0.2070666,96595.0,96594.0,0.2116687]
[1740234948390,0.2170666,96595.0,96594.0,0.2116687]
[1740234950891,0.2070666,96595.0,96594.0,0.2116687]
[1740234951299,0.2170666,96595.0,96594.0,0.2116687]
[1740234952098,0.01,96595.0,96594.0,0.2116687]
[1740234952313,0.427458,96599.0,96598.0,0.2070601]
[1740234952692,0.2204,96599.0,96598.0,0.2401601]
[1740234953104,0.427458,96599.0,96598.0,0.2401601]
[1740234953700,0.437458,96599.0,96598.0,0.2401601]
[1740234954214,0.217058,96599.0,96598.0,0.2401601]
[1740234958410,0.01,96599.0,96598.0,0.2401601]
[1740234958804,1e-08,96604.0,96598.0,0.2401601]
[1740234958805,1e-08,96604.0,96600.0,0.0517635]
[1740234959005,1e-08,96604.0,96603.0,0.2070494]
[1740234959503,1e-08,96604.0,96603.0,0.2403494]
[1740234959918,0.01000001,96604.0,96603.0,0.2403494]
[1740234963003,0.05296635,96621.0,96609.0,0.0517587]
[1740234963004,0.00121325,96621.0,96609.0,0.0517587]
[1740234963202,0.00121325,96621.0,96614.0,0.5678258]
[1740234963417,0.01155329,96615.0,96614.0,0.5678258]
[1740234963613,0.00155329,96615.0,96614.0,0.2390258]
[1740234964115,0.01155329,96615.0,96614.0,0.2390258]
[1740234964316,0.22157699,96615.0,96614.0,0.2390258]
[1740234965105,0.22357699,96615.0,96614.0,0.2390258]
[1740234966421,0.22357699,96615.0,96614.0,0.2702258]
[1740234967916,0.22357699,96615.0,96614.0,0.3731458]
[1740234968510,0.22357699,96615.0,96614.0,0.2702258]
[1740234969640,0.01655329,96615.0,96614.0,0.2702258]
[1740234970006,0.22357699,96615.0,96614.0,0.2702258]
[1740234970212,0.21357699,96615.0,96614.0,0.28640672]
[1740234970408,0.22357699,96615.0,96614.0,0.28640672]
[1740234970626,0.21357699,96615.0,96614.0,0.28640672]
[1740234971117,0.22357699,96615.0,96614.0,0.28640672]
[1740234971616,0.22357699,96615.0,96614.0,0.38936672]
[1740234973012,0.22357699,96615.0,96614.0,0.38936645]
[1740234973214,0.22357699,96615.0,96614.0,0.3731858]
[1740234975614,0.22357699,96615.0,96614.0,0.2702258]
[1740234975817,0.22357699,96615.0,96614.0,0.3729858]
[1740234977625,0.01655329,96615.0,96614.0,0.3729858]
[1740234978421,0.00655329,96615.0,96614.0,0.38916634]
[1740234978623,0.00655329,96615.0,96614.0,0.74996634]
[1740234978925,0.01655329,96615.0,96614.0,0.74996634]
[1740234979222,0.00655329,96615.0,96614.0,0.74996634]
[1740234979618,0.01655329,96615.0,96614.0,0.74996634]
[1740234980117,0.01655329,96615.0,96614.0,0.76011194]
[1740234980823,0.01655329,96615.0,96614.0,0.39931194]
[1740234981129,0.00655329,96615.0,96614.0,0.39931194]
[1740234982017,0.01655329,96615.0,96614.0,0.65735194]
[1740234982216,0.01655329,96615.0,96614.0,0.75987194]
[1740234982619,0.005,96615.0,96614.0,0.75987194]
[1740234983113,0.005,96615.0,96614.0,0.78575952]
[1740234983627,0.015,96615.0,96614.0,0.78575952]
[1740234983821,0.012,96615.0,96614.0,0.78575952]
[1740234984018,0.002,96615.0,96614.0,0.78576024]
[1740234984528,0.2070164,96619.0,96614.0,0.78576024]
[1740234984529,0.2070164,96619.0,96614.0,0.57873444]
[1740234984734,0.2070134,96620.0,96619.0,0.207013]
[1740234985028,0.2170134,96620.0,96619.0,0.22319354]
[1740234987934,0.2200134,96620.0,96619.0,0.22319354]
[1740234988435,0.220013,96620.0,96619.0,0.22319354]
[1740234988834,0.003,96620.0,96619.0,0.22319354]
[1740234989834,0.013,96620.0,96619.0,0.22319354]
[1740234990045,0.220013,96620.0,96619.0,0.22319354]
[1740234990229,0.013,96620.0,96619.0,0.22319354]
[1740234990427,0.220013,96620.0,96619.0,0.22319354]
[1740234990833,0.013,96620.0,96619.0,0.22319354]
[1740234991032,0.220013,96620.0,96619.0,0.22319354]
[1740234991236,0.013,96620.0,96619.0,0.22319354]
[1740234991528,0.003,96620.0,96619.0,0.22319354]
[1740234991735,0.013,96620.0,96619.0,0.22319354]
[1740234991930,0.003,96620.0,96619.0,0.22319354]
[1740234992330,0.003,96620.0,96619.0,0.24908106]
[1740234996232,0.013,96620.0,96619.0,0.24908106]
[1740234996838,0.003,96620.0,96619.0,0.24908106]
[1740234997230,0.013,96620.0,96619.0,0.24908106]
[1740234997468,0.003,96620.0,96619.0,0.24908106]
[1740234998328,0.003,96620.0,96619.0,0.27998106]
[1740234998539,0.013,96620.0,96619.0,0.27998106]
[1740234998935,0.003,96620.0,96619.0,0.27998106]
[1740234999136,0.003,96620.0,96619.0,0.28998106]
[1740235000541,0.003,96620.0,96619.0,0.28997694]
[1740235001333,0.003,96620.0,96619.0,0.26409144]
[1740235002538,0.003,96620.0,96619.0,0.26409141]
[1740235004437,0.003,96620.0,96619.0,0.247913]
[1740235004639,0.003,96620.0,96619.0,0.349833]
[1740235008643,0.003,96620.0,96619.0,0.3660117]
[1740235013647,0.003,96620.0,96619.0,0.349833]
[1740235016044,0.003,96620.0,96619.0,0.247913]
[1740235016346,0.003,96620.0,96619.0,0.349473]
[1740235016534,0.003,96620.0,96619.0,0.36565141]
[1740235017247,0.003,96620.0,96619.0,0.55152582]
[1740235021044,0.003,96620.0,96619.0,0.36565141]
[1740235022151,0.003,96620.0,96619.0,0.26409141]
[1740235022353,0.003,96620.0,96619.0,0.36565141]
[1740235025541,0.003,96620.0,96619.0,0.36565152]
[1740235028154,0.003,96620.0,96619.0,0.72645152]
[1740235028357,0.003,96620.0,96619.0,0.36565152]
[1740235028578,0.003,96620.0,96619.0,0.72645152]
[1740235032056,0.00015528,96624.0,96623.0,0.2070066]
[1740235032245,0.00015528,96624.0,96623.0,0.22318512]
[1740235032450,0.01015528,96624.0,96623.0,0.25398512]
[1740235033250,0.00415528,96624.0,96623.0,0.25398512]
[1740235033447,0.01415528,96624.0,96623.0,0.25398512]
[1740235033650,0.00415528,96624.0,96623.0,0.27987058]
[1740235033872,0.01415528,96624.0,96623.0,0.27987058]
[1740235034349,0.00415528,96624.0,96623.0,0.28987058]
[1740235034552,0.00615528,96624.0,96623.0,0.28987058]
[1740235035149,0.00615528,96624.0,96623.0,0.2478066]
[1740235035464,0.00615528,96624.0,96623.0,0.28987045]
[1740235035964,0.00615528,96624.0,96623.0,0.39143045]
[1740235037159,0.00615528,96624.0,96623.0,0.39143044]
[1740235038283,0.00615528,96624.0,96623.0,0.75223044]
[1740235040774,0.15416786,96633.0,96623.0,0.54522384]
[1740235040970,0.15416786,96633.0,96632.0,0.5677873]
[1740235041169,1e-08,96633.0,96632.0,0.72141114]
[1740235041362,1e-08,96633.0,96632.0,0.78431114]
[1740235042163,0.00700001,96633.0,96632.0,0.78431114]
[1740235042469,0.01200001,96633.0,96632.0,0.78431114]
[1740235043663,0.012,96633.0,96632.0,0.78431114]
[1740235044660,0.012,96633.0,96632.0,0.7584257]
[1740235046763,0.012,96633.0,96632.0,0.7422473]
[1740235055379,0.012,96633.0,96632.0,0.7422073]
[1740235055571,0.012,96633.0,96632.0,0.92819089]
[1740235058278,0.012,96633.0,96632.0,0.93179089]
[1740235060384,0.012,96633.0,96632.0,0.7458073]
[1740235064780,0.012,96633.0,96632.0,0.93179089]
[1740235069081,0.012,96633.0,96632.0,0.7458073]
[1740235073579,0.012,96633.0,96632.0,0.3850073]
[1740235073777,0.012,96633.0,96632.0,0.7458073]
[1740235082475,0.012,96633.0,96632.0,0.99390124]
[1740235086284,0.012,96633.0,96632.0,0.7458073]
[1740235091487,0.012,96633.0,96632.0,0.6442873]
[1740235091687,0.012,96633.0,96632.0,0.7458073]
[1740235106500,0.012,96633.0,96632.0,0.99420823]
[1740235110503,0.012,96633.0,96632.0,0.7458073]
[1740235112212,0.012,96633.0,96632.0,0.6442873]
[1740235112412,0.012,96633.0,96632.0,0.7457673]
[1740235118407,0.012,96633.0,96632.0,0.99416823]
[1740235118913,0.012,96633.0,96632.0,0.63336823]
[1740235119115,0.012,96633.0,96632.0,0.99416823]
[1740235122918,0.012,96633.0,96632.0,0.63336823]
[1740235123155,0.012,96633.0,96632.0,0.99416823]
[1740235126118,0.012,96633.0,96632.0,0.7457673]
[1740235137022,0.012,96633.0,96632.0,0.99418878]
[1740235140823,0.012,96633.0,96632.0,0.7457673]
[1740235145018,0.012,96633.0,96632.0,0.6442873]
[1740235145219,0.012,96633.0,96632.0,0.7457673]
[1740235146852,0.012,96633.0,96632.0,0.6442873]
[1740235147022,0.012,96633.0,96632.0,0.7457273]
[1740235147218,0.012,96633.0,96632.0,0.5713873]
[1740235147219,0.2289851,96633.0,96632.0,0.5713873]
[1740235147434,0.2289851,96633.0,96632.0,0.6728273]
[1740235147827,0.2289851,96633.0,96632.0,0.0036]
[1740235148026,0.2069959,96628.0,96627.0,0.30929177]
[1740235148328,0.5777959,96628.0,96627.0,0.30929177]
[1740235148524,0.5777959,96628.0,96627.0,0.51628977]
[1740235149331,0.5827959,96628.0,96627.0,0.206998]
[1740235149726,0.005,96628.0,96627.0,0.238298]
[1740235149929,0.005,96628.0,96627.0,0.339738]
[1740235150631,0.018,96628.0,96627.0,0.339738]
[1740235151232,0.2249959,96628.0,96627.0,0.339738]
[1740235151828,0.2149959,96628.0,96627.0,0.339738]
[1740235152226,0.2249959,96628.0,96627.0,0.339738]
[1740235154938,0.2249959,96628.0,96627.0,0.238298]
[1740235157929,0.018,96628.0,96627.0,0.238298]
[1740235159538,0.008,96628.0,96627.0,0.238298]
[1740235160630,0.018,96628.0,96627.0,0.238298]
[1740235160829,0.018,96628.0,96627.0,0.339778]
[1740235161035,0.2249959,96628.0,96627.0,0.339778]
[1740235161833,0.2249959,96628.0,96627.0,0.238298]
[1740235165737,0.2249959,96628.0,96627.0,0.0313]
[1740235165933,0.2249959,96628.0,96627.0,0.238298]
[1740235169844,0.2249959,96628.0,96627.0,0.0313]
[1740235170946,0.2070066,96623.0,96622.0,0.0307]
[1740235171154,0.5778066,96623.0,96622.0,0.0637]
[1740235173051,0.5798066,96623.0,96622.0,0.0637]
[1740235173647,0.5828066,96623.0,96622.0,0.0637]
[1740235175549,0.5828066,96623.0,96622.0,0.2707087]
[1740235176453,0.73755754,96623.0,96622.0,0.2707087]
[1740235177756,0.73755754,96623.0,96622.0,0.0637]
[1740235178061,0.73755754,96623.0,96622.0,0.2707087]
[1740235179249,0.62314108,96623.0,96622.0,0.2707087]
[1740235179756,0.41613448,96623.0,96622.0,0.2707087]
[1740235180626,0.63314108,96623.0,96622.0,0.2707087]
[1740235182060,0.27234108,96623.0,96622.0,0.2707087]
[1740235182765,0.2220066,96623.0,96622.0,0.2707087]
[1740235184763,0.015,96623.0,96622.0,0.2707087]
[1740235185151,0.2220066,96623.0,96622.0,0.2707087]
[1740235193370,0.015,96623.0,96622.0,0.2707087]
[1740235193569,0.2220066,96623.0,96622.0,0.2707087]
[1740235194269,0.015,96623.0,96622.0,0.2707087]
[1740235195274,0.005,96623.0,96622.0,0.2707087]
[1740235195682,0.15459217,96628.0,96622.0,0.0637]
[1740235195970,0.15459217,96628.0,96627.0,0.206998]
[1740235196163,0.00489217,96628.0,96627.0,0.206998]
[1740235196364,0.01489217,96628.0,96627.0,0.206998]
[1740235196570,0.00489217,96628.0,96627.0,0.206998]
[1740235196771,0.01489217,96628.0,96627.0,0.206998]
[1740235197172,0.01789217,96628.0,96627.0,0.206998]
[1740235197375,0.013,96628.0,96627.0,0.206998]
[1740235197974,0.015,96628.0,96627.0,0.206998]
[1740235198570,0.013,96628.0,96627.0,0.206998]
[1740235198772,0.017,96628.0,96627.0,0.206998]
[1740235203979,0.017,96628.0,96627.0,0.308438]
[1740235206174,0.007,96628.0,96627.0,0.318438]
[1740235210982,0.00015528,96642.0,96627.0,0.11144]
[1740235211279,0.00015528,96642.0,96641.0,0.206968]
[1740235211485,0.00015528,96642.0,96641.0,0.308368]
[1740235211675,0.00015528,96642.0,96641.0,0.370468]
[1740235212380,0.00315528,96642.0,96641.0,0.370468]
[1740235212882,0.00715528,96642.0,96641.0,0.370468]
[1740235213078,0.00715528,96642.0,96641.0,0.308368]
[1740235213682,0.01415528,96642.0,96641.0,0.319368]
[1740235213873,0.01415528,96642.0,96641.0,0.33554448]
[1740235214274,0.01415528,96642.0,96641.0,0.319368]
[1740235214877,0.01415528,96642.0,96641.0,0.33554401]
[1740235216988,0.01415528,96642.0,96641.0,0.33554367]